[Event "Fagernes Chess Open 2024"]
[Site "Fagernes"]
[Date "2024.03.26"]
[Round "3.1"]
[White "Kuzmenko, Mykhailo"]
[Black "Kittilsen, Sigurd"]
[Result "1-0"]
[ECO "D00"]
[WhiteElo "1747"]
[BlackElo "1910"]
[Annotator "NA RC"]
[PlyCount "137"]
[EventDate "2024.03.25"]
[EventType "swiss"]
[EventCountry "NOR"]
[SourceTitle "playchess.com"]
[Source "ChessBase"]
[SourceQuality "1"]
[TimeControl "40/6000+30:2400+30"]

1. d4 {[%emt 0:00:02]} d5 {[%emt 0:00:26]} 2. Bf4 {[%emt 0:00:15]} h5 {[%emt 0:01:35]} 3. Nf3 {[%emt 0:06:12]} Bg4 {[%emt 0:00:28]} 4. Nc3 {[%emt 0:04:49]} Nc6 {[%emt 0:06:11]} 5. h3 {[%emt 0:02:19]} Bxf3 {[%emt 0:01:44]} 6. gxf3 {[%emt 0:03:00]} e6 {[%emt 0:02:12]} 7. e3 {[%emt 0:01:36]} Bd6 {[%emt 0:01:53]} 8. Bxd6 {[%emt 0:00:46]} cxd6 {[%emt 0:02:05]} 9. Rg1 {[%emt 0:03:48]} Nge7 {[%emt 0:17:45]} 10. Qd2 {[%emt 0:02:06]} Nf5 {[%emt 0:05:44]} 11. O-O-O {[%emt 0:01:15]} Qf6 {[%emt 0:02:56]} 12. Bb5 {[%emt 0:05:21]} Nh4 {[%emt 0:05:57]} 13. Bxc6+ {[%emt 0:01:07]} bxc6 {[%emt 0:00:17]} 14. Qe2 {[%emt 0:00:33]} Nxf3 {[%emt 0:05:17]} 15. Rg3 {[%emt 0:09:53]} Nh4 {[%emt 0:02:23]} 16. e4 {[%emt 0:06:03]} dxe4 {[%emt 0:06:31]} 17. Nxe4 {[%emt 0:01:53]} Qf4+ {[%emt 0:00:37]} 18. Kb1 {[%emt 0:00:21]} d5 {[%emt 0:05:29]} 19. Ng5 {[%emt 0:02:42]} Nf5 {[%emt 0:04:45]} 20. Rg2 {[%emt 0:00:56]} Nxd4 {[%emt 0:11:29]} 21. Rxd4 {[%emt 0:00:51]} Qxd4 {[%emt 0:00:06]} 22. Nxe6 {[%emt 0:00:08]} Qe4 {[%emt 0:00:14]} 23. Qxe4 {[%emt 0:00:21]} dxe4 {[%emt 0:00:05]} 24. Nc7+ {[%emt 0:00:13]} Kd7 {[%emt 0:00:35]} 25. Nxa8 {[%emt 0:00:25]} g6 {[%emt 0:00:06]} 26. c4 {[%emt 0:05:39]} Rxa8 {[%emt 0:02:06]} 27. Kc2 {[%emt 0:00:05]} Ke6 {[%emt 0:01:43]} 28. Rg5 {[%emt 0:00:49]} Rd8 {[%emt 0:02:25]} 29. Rc5 {[%emt 0:05:52]} Kd6 {[%emt 0:06:34]} 30. Ra5 {[%emt 0:00:15]} Rd7 {[%emt 0:01:26]} 31. b4 {[%emt 0:03:30]} f5 {[%emt 0:00:58]} 32. h4 {[%emt 0:03:14]} f4 {[%emt 0:05:12]} 33. Rg5 {[%emt 0:01:13]} Rg7 {[%emt 0:04:07]} 34. Kc3 {[%emt 0:00:30]} e3 {[%emt 0:01:33]} 35. fxe3 {[%emt 0:04:24]} fxe3 {[%emt 0:03:28]} 36. Kd3 {[%emt 0:00:25]} e2 {[%emt 0:01:32]} 37. Kxe2 {[%emt 0:00:12]} Re7+ {[%emt 0:00:05]} 38. Kd3 {[%emt 0:00:29]} Re6 {[%emt 0:00:10]} 39. Ra5 {[%emt 0:01:42]} Re7 {[%emt 0:01:14]} 40. Kd4 {[%emt 0:01:04]} Rf7 {[%emt 0:00:32]} 41. c5+ {[%emt 0:45:40]} Ke6 {[%emt 0:40:29]} 42. Ke4 {[%emt 0:00:19]} Rf1 {[%emt 0:00:00]} 43. Ra6 {[%emt 0:00:00]} Re1+ {[%emt 0:00:00]} 44. Kd4 {[%emt 0:00:00]} Rd1+ {[%emt 0:00:00]} 45. Kc4 {[%emt 0:10:18]} Rc1+ {[%emt 0:00:00]} 46. Kb3 {[%emt 0:00:00]} Kd5 {[%emt 0:00:00]} 47. Rxa7 {[%emt 0:00:00]} Rb1+ {[%emt 0:00:00]} 48. Ka4 {[%emt 0:00:00]} Kc4 {[%emt 0:00:00]} 49. a3 {[%emt 0:00:00]} Re1 {[%emt 0:00:00]} 50. Rd7 {[%emt 0:00:00]} Re8 {[%emt 0:00:00]} 51. Ra7 {[%emt 0:00:00]} g5 {[%emt 0:00:00]} 52. hxg5 {[%emt 0:00:00]} h4 {[%emt 0:00:00]} 53. Ka5 {[%emt 0:00:00]} Rh8 {[%emt 0:00:00]} 54. Rf7 {[%emt 0:00:00]} h3 {[%emt 0:00:00]} 55. Rf1 {[%emt 0:00:00]} h2 {[%emt 0:00:26]} 56. Rh1 {[%emt 0:00:00]} Kb3 {[%emt 0:01:43]} 57. g6 {[%emt 0:00:00]} Kxa3 {[%emt 0:01:00]} 58. g7 {[%emt 0:00:00]} Rg8 {[%emt 0:00:33]} 59. Rxh2 {[%emt 0:00:00]} Rxg7 {[%emt 0:00:05]} 60. Rh3+ {[%emt 0:00:00]} Kb2 {[%emt 0:00:08]} 61. Kb6 {[%emt 0:00:00]} Rg4 {[%emt 0:01:22]} 62. Kxc6 {[%emt 0:00:00]} Rxb4 {[%emt 0:00:23]} 63. Kc7 {[%emt 0:00:00]} Rc4 {[%emt 0:02:36]} 64. c6 {[%emt 0:00:00]} Rg4 {[%emt 0:01:15]} 65. Kb7 {[%emt 0:00:00]} Rb4+ {[%emt 0:00:45]} 66. Kc8 {[%emt 0:00:00]} Rc4 {[%emt 0:00:12]} 67. c7 {[%emt 0:00:00]} Ka1 {[%emt 0:01:38]} 68. Rh6 {[%emt 0:00:00]} Rh4 {[%emt 0:01:09]} 69. Rxh4 {[%emt 0:00:00]} 1-0

[Event "Fagernes Chess Open 2024"]
[Site "Fagernes"]
[Date "2024.03.26"]
[Round "3.2"]
[White "Spanton, Tim R"]
[Black "Lahlum, Ida"]
[Result "1-0"]
[ECO "B51"]
[WhiteElo "1876"]
[BlackElo "1755"]
[Annotator "NA RC"]
[PlyCount "71"]
[EventDate "2024.03.25"]
[EventType "swiss"]
[EventCountry "NOR"]
[SourceTitle "playchess.com"]
[Source "ChessBase"]
[SourceQuality "1"]
[TimeControl "40/6000+30:2400+30"]

1. e4 {[%emt 0:00:03]} c5 {[%emt 0:00:29]} 2. Nf3 {[%emt 0:00:08]} d6 {[%emt 0:00:12]} 3. Bb5+ {[%emt 0:00:04]} Nd7 {[%emt 0:00:40]} 4. d4 {[%emt 0:00:29]} cxd4 {[%emt 0:01:00]} 5. Qxd4 {[%emt 0:00:14]} Ngf6 {[%emt 0:03:26]} 6. Bg5 {[%emt 0:01:25]} h6 {[%emt 0:07:12]} 7. Bxf6 {[%emt 0:00:41]} gxf6 {[%emt 0:00:20]} 8. Nc3 {[%emt 0:00:19]} a6 {[%emt 0:02:28]} 9. Ba4 {[%emt 0:01:54]} b5 {[%emt 0:02:10]} 10. Bb3 {[%emt 0:00:21]} Bb7 {[%emt 0:03:35]} 11. Bd5 {[%emt 0:00:55]} Bxd5 {[%emt 0:03:32]} 12. exd5 {[%emt 0:02:31]} Rg8 {[%emt 0:11:16]} 13. O-O {[%emt 0:02:13]} Qb6 {[%emt 0:08:29]} 14. Rfe1 {[%emt 0:00:55]} O-O-O {[%emt 0:06:11]} 15. a4 {[%emt 0:04:13]} b4 {[%emt 0:04:16]} 16. Ne2 {[%emt 0:01:56]} Kb7 {[%emt 0:05:57]} 17. a5 {[%emt 0:01:08]} Qc5 {[%emt 0:01:15]} 18. Ra4 {[%emt 0:05:10]} Qxd4 {[%emt 0:05:29]} 19. Nexd4 {[%emt 0:00:16]} Rc8 {[%emt 0:06:48]} 20. Rxb4+ {[%emt 0:00:25]} Ka8 {[%emt 0:00:53]} 21. Re3 {[%emt 0:04:36]} Nc5 {[%emt 0:02:15]} 22. Rb6 {[%emt 0:05:58]} Rb8 {[%emt 0:03:58]} 23. Rxb8+ {[%emt 0:00:36]} Kxb8 {[%emt 0:00:08]} 24. Nc6+ {[%emt 0:00:20]} Kc7 {[%emt 0:03:44]} 25. b4 {[%emt 0:00:56]} Nd7 {[%emt 0:02:06]} 26. Nxe7 {[%emt 0:03:03]} Rg4 {[%emt 0:02:47]} 27. c3 {[%emt 0:03:27]} Ne5 {[%emt 0:01:38]} 28. Nf5 {[%emt 0:02:07]} h5 {[%emt 0:07:24]} 29. h3 {[%emt 0:00:44]} Nxf3+ {[%emt 0:02:31]} 30. Rxf3 {[%emt 0:00:07]} Re4 {[%emt 0:00:43]} 31. Re3 {[%emt 0:00:50]} Re5 {[%emt 0:00:52]} 32. Rxe5 {[%emt 0:01:05]} fxe5 {[%emt 0:00:10]} 33. f3 {[%emt 0:00:18]} Kd7 {[%emt 0:01:49]} 34. Kf2 {[%emt 0:00:17]} Be7 {[%emt 0:02:00]} 35. Nxe7 {[%emt 0:00:17]} Kxe7 {[%emt 0:00:06]} 36. b5 {[%emt 0:00:07]} 1-0

[Event "Fagernes Chess Open 2024"]
[Site "Fagernes"]
[Date "2024.03.26"]
[Round "3.3"]
[White "Damiano, Sophie"]
[Black "Strand, Amund Pihl"]
[Result "0-1"]
[ECO "A46"]
[WhiteElo "1691"]
[BlackElo "1860"]
[Annotator "NA RC"]
[PlyCount "64"]
[EventDate "2024.03.25"]
[EventType "swiss"]
[EventCountry "NOR"]
[SourceTitle "playchess.com"]
[Source "ChessBase"]
[SourceQuality "1"]
[TimeControl "40/6000+30:2400+30"]

1. d4 {[%emt 0:01:40]} Nf6 {[%emt 0:00:15]} 2. Nf3 {[%emt 0:00:51]} e6 {[%emt 0:00:13]} 3. g3 {[%emt 0:00:32]} c5 {[%emt 0:00:11]} 4. Bg2 {[%emt 0:01:26]} cxd4 {[%emt 0:00:10]} 5. O-O {[%emt 0:01:17]} d5 {[%emt 0:01:34]} 6. Bf4 {[%emt 0:15:53]} Bd6 {[%emt 0:13:39]} 7. Be5 {[%emt 0:06:40]} Bxe5 {[%emt 0:04:13]} 8. Nxe5 {[%emt 0:01:00]} Qb6 {[%emt 0:00:17]} 9. b3 {[%emt 0:06:57]} Nc6 {[%emt 0:01:02]} 10. Nxc6 {[%emt 0:01:16]} bxc6 {[%emt 0:00:09]} 11. Nd2 {[%emt 0:01:31]} O-O {[%emt 0:02:17]} 12. Nf3 {[%emt 0:03:00]} c5 {[%emt 0:01:56]} 13. h4 {[%emt 0:13:45]} a5 {[%emt 0:08:32]} 14. Qd2 {[%emt 0:05:46]} Ba6 {[%emt 0:03:42]} 15. Rfe1 {[%emt 0:04:47]} Ne4 {[%emt 0:04:27]} 16. Qf4 {[%emt 0:01:10]} Nc3 {[%emt 0:01:00]} 17. Bf1 {[%emt 0:00:58]} Qb8 {[%emt 0:13:46]} 18. Qg4 {[%emt 0:06:35]} Qd6 {[%emt 0:02:34]} 19. Qh3 {[%emt 0:09:17]} Rae8 {[%emt 0:07:00]} 20. g4 {[%emt 0:06:54]} e5 {[%emt 0:02:05]} 21. e3 {[%emt 0:06:20]} Bc8 {[%emt 0:09:05]} 22. Nh2 {[%emt 0:02:30]} f5 {[%emt 0:01:47]} 23. f3 {[%emt 0:04:48]} dxe3 {[%emt 0:01:00]} 24. Rxe3 {[%emt 0:01:21]} d4 {[%emt 0:00:27]} 25. Ree1 {[%emt 0:02:07]} e4 {[%emt 0:02:18]} 26. Bc4+ {[%emt 0:00:27]} Kh8 {[%emt 0:00:10]} 27. fxe4 {[%emt 0:02:49]} fxe4 {[%emt 0:00:56]} 28. Qg2 {[%emt 0:01:17]} Bb7 {[%emt 0:01:24]} 29. Qh3 {[%emt 0:00:57]} e3 {[%emt 0:00:31]} 30. Be2 {[%emt 0:00:52]} Qf4 {[%emt 0:01:05]} 31. Qf1 {[%emt 0:00:42]} Qg3+ {[%emt 0:00:09]} 32. Qg2 {[%emt 0:00:19]} Qxg2# {[%emt 0:00:06]} 0-1

[Event "Fagernes Chess Open 2024"]
[Site "Fagernes"]
[Date "2024.03.26"]
[Round "3.4"]
[White "Odden, Jan Ove"]
[Black "Hausken, Andreas Skrede"]
[Result "0-1"]
[ECO "E46"]
[WhiteElo "1723"]
[BlackElo "1963"]
[Annotator "NA RC"]
[PlyCount "62"]
[EventDate "2024.03.25"]
[EventType "swiss"]
[EventCountry "NOR"]
[SourceTitle "playchess.com"]
[Source "ChessBase"]
[SourceQuality "1"]
[TimeControl "40/6000+30:2400+30"]

1. d4 {[%emt 0:00:05]} Nf6 {[%emt 0:00:05]} 2. c4 {[%emt 0:00:05]} e6 {[%emt 0:00:03]} 3. Nc3 {[%emt 0:00:08]} Bb4 {[%emt 0:00:04]} 4. e3 {[%emt 0:00:23]} O-O {[%emt 0:00:06]} 5. Nge2 {[%emt 0:00:09]} c6 {[%emt 0:00:11]} 6. a3 {[%emt 0:00:27]} Ba5 {[%emt 0:00:04]} 7. Ng3 {[%emt 0:02:44]} d5 {[%emt 0:00:30]} 8. Bd3 {[%emt 0:01:25]} Nbd7 {[%emt 0:00:28]} 9. O-O {[%emt 0:02:14]} Re8 {[%emt 0:02:21]} 10. cxd5 {[%emt 0:08:14]} exd5 {[%emt 0:01:49]} 11. Bd2 {[%emt 0:03:59]} Nf8 {[%emt 0:03:39]} 12. Rc1 {[%emt 0:05:02]} Ng6 {[%emt 0:03:11]} 13. Nce2 {[%emt 0:05:58]} Bc7 {[%emt 0:01:21]} 14. f3 {[%emt 0:02:44]} Bd7 {[%emt 0:05:56]} 15. e4 {[%emt 0:04:41]} dxe4 {[%emt 0:01:10]} 16. fxe4 {[%emt 0:00:35]} Ng4 {[%emt 0:02:09]} 17. e5 {[%emt 0:08:15]} N6xe5 {[%emt 0:06:30]} 18. Bf4 {[%emt 0:11:03]} Nxd3 {[%emt 0:06:54]} 19. Qxd3 {[%emt 0:00:50]} Bxf4 {[%emt 0:00:27]} 20. Rxf4 {[%emt 0:03:19]} Re3 {[%emt 0:00:44]} 21. Qd2 {[%emt 0:04:57]} Qe7 {[%emt 0:01:57]} 22. h3 {[%emt 0:01:41]} Nf6 {[%emt 0:00:19]} 23. Rc3 {[%emt 0:03:27]} Re8 {[%emt 0:02:10]} 24. Qxe3 {[%emt 0:05:57]} Qxe3+ {[%emt 0:00:06]} 25. Rxe3 {[%emt 0:00:06]} Rxe3 {[%emt 0:00:02]} 26. Kf2 {[%emt 0:03:33]} Rb3 {[%emt 0:00:06]} 27. Ne4 {[%emt 0:02:00]} Nxe4+ {[%emt 0:00:21]} 28. Rxe4 {[%emt 0:00:06]} Kf8 {[%emt 0:00:05]} 29. Re3 {[%emt 0:03:43]} Rxb2 {[%emt 0:00:05]} 30. Kg3 {[%emt 0:00:27]} Be6 {[%emt 0:00:23]} 31. Kf4 {[%emt 0:01:48]} Bc4 {[%emt 0:00:42]} 0-1

[Event "Fagernes Chess Open 2024"]
[Site "Fagernes"]
[Date "2024.03.26"]
[Round "3.5"]
[White "Mahendran, T.."]
[Black "Rolstad, Morten"]
[Result "0-1"]
[ECO "C50"]
[WhiteElo "1681"]
[BlackElo "1879"]
[Annotator "NA RC"]
[PlyCount "76"]
[EventDate "2024.03.25"]
[EventType "swiss"]
[EventCountry "NOR"]
[SourceTitle "playchess.com"]
[Source "ChessBase"]
[SourceQuality "1"]
[TimeControl "40/6000+30:2400+30"]

1. e4 {[%emt 0:01:08]} e5 {[%emt 0:00:53]} 2. Nf3 {[%emt 0:00:10]} Nc6 {[%emt 0:00:11]} 3. Bc4 {[%emt 0:00:19]} Bc5 {[%emt 0:00:17]} 4. O-O {[%emt 0:00:20]} Nf6 {[%emt 0:00:17]} 5. d4 {[%emt 0:00:34]} Bxd4 {[%emt 0:00:09]} 6. Nxd4 {[%emt 0:00:12]} Nxd4 {[%emt 0:00:09]} 7. Bg5 {[%emt 0:00:13]} Qe7 {[%emt 0:01:01]} 8. c3 {[%emt 0:01:54]} Ne6 {[%emt 0:03:01]} 9. Bxe6 {[%emt 0:00:10]} Qxe6 {[%emt 0:01:49]} 10. Nd2 {[%emt 0:00:09]} d6 {[%emt 0:02:30]} 11. h3 {[%emt 0:00:39]} Bd7 {[%emt 0:00:52]} 12. f4 {[%emt 0:00:02]} exf4 {[%emt 0:02:28]} 13. Rxf4 {[%emt 0:00:10]} Rg8 {[%emt 0:22:44]} 14. Qf3 {[%emt 0:02:35]} O-O-O {[%emt 0:03:16]} 15. Bh4 {[%emt 0:02:09]} Rdf8 {[%emt 0:10:23]} 16. Nb3 {[%emt 0:01:51]} Qe5 {[%emt 0:07:36]} 17. Bg3 {[%emt 0:01:07]} Re8 {[%emt 0:10:42]} 18. Re1 {[%emt 0:00:12]} Kb8 {[%emt 0:01:45]} 19. Qd3 {[%emt 0:02:57]} Qg5 {[%emt 0:08:45]} 20. Rf3 {[%emt 0:02:50]} Bc6 {[%emt 0:06:16]} 21. Rfe3 {[%emt 0:00:43]} h5 {[%emt 0:05:24]} 22. Bf2 {[%emt 0:00:05]} b6 {[%emt 0:05:17]} 23. Nd2 {[%emt 0:03:38]} Nd7 {[%emt 0:03:51]} 24. Rg3 {[%emt 0:01:13]} Qe7 {[%emt 0:03:03]} 25. Rge3 {[%emt 0:01:18]} Ne5 {[%emt 0:00:35]} 26. Qe2 {[%emt 0:00:59]} g5 {[%emt 0:00:51]} 27. Bg3 {[%emt 0:00:40]} g4 {[%emt 0:00:49]} 28. h4 {[%emt 0:00:16]} Ng6 {[%emt 0:03:10]} 29. Qf2 {[%emt 0:00:10]} Qe6 {[%emt 0:00:54]} 30. b3 {[%emt 0:02:30]} Rgf8 {[%emt 0:00:23]} 31. e5 {[%emt 0:00:57]} d5 {[%emt 0:02:03]} 32. Bf4 {[%emt 0:03:26]} Ne7 {[%emt 0:03:10]} 33. g3 {[%emt 0:00:43]} Nf5 {[%emt 0:00:55]} 34. R3e2 {[%emt 0:00:03]} Rd8 {[%emt 0:01:06]} 35. Nf1 {[%emt 0:00:04]} d4 {[%emt 0:00:23]} 36. c4 {[%emt 0:00:12]} Bb7 {[%emt 0:00:27]} 37. Rd2 {[%emt 0:00:11]} Qc6 {[%emt 0:00:13]} 38. Qg2 {[%emt 0:01:15]} Bc8 {[%emt 0:01:04]} 0-1

[Event "Fagernes Chess Open 2024"]
[Site "Fagernes"]
[Date "2024.03.26"]
[Round "3.6"]
[White "Agustsson, Hafsteinn"]
[Black "Shehzad, Alina"]
[Result "0-1"]
[ECO "A04"]
[WhiteElo "1825"]
[BlackElo "1670"]
[Annotator "NA RC"]
[PlyCount "82"]
[EventDate "2024.03.25"]
[EventType "swiss"]
[EventCountry "NOR"]
[SourceTitle "playchess.com"]
[Source "ChessBase"]
[SourceQuality "1"]
[TimeControl "40/6000+30:2400+30"]

1. e4 {[%emt 0:00:30]} c5 {[%emt 0:00:30]} 2. Nf3 {[%emt 0:00:30]} d6 {[%emt 0:00:30]} 3. g3 {[%emt 0:00:30]} Nc6 {[%emt 0:00:30]} 4. Bg2 {[%emt 0:00:30]} g6 {[%emt 0:00:18]} 5. O-O {[%emt 0:00:11]} Bg7 {[%emt 0:00:05]} 6. d3 {[%emt 0:00:23]} e6 {[%emt 0:05:53]} 7. c3 {[%emt 0:00:35]} Nge7 {[%emt 0:10:06]} 8. Nbd2 {[%emt 0:02:35]} O-O {[%emt 0:01:04]} 9. a4 {[%emt 0:00:43]} a6 {[%emt 0:03:11]} 10. Re1 {[%emt 0:02:35]} Qc7 {[%emt 0:07:08]} 11. Nc4 {[%emt 0:04:33]} Na5 {[%emt 0:10:50]} 12. Ne3 {[%emt 0:09:20]} Nac6 {[%emt 0:15:11]} 13. Nc4 {[%emt 0:05:09]} Na5 {[%emt 0:03:15]} 14. Nfd2 {[%emt 0:01:17]} Nec6 {[%emt 0:05:42]} 15. f4 {[%emt 0:01:01]} b5 {[%emt 0:08:07]} 16. Nxa5 {[%emt 0:07:46]} Qxa5 {[%emt 0:00:47]} 17. Nb3 {[%emt 0:02:49]} Qb6 {[%emt 0:00:27]} 18. e5 {[%emt 0:07:33]} bxa4 {[%emt 0:04:14]} 19. Rxa4 {[%emt 0:01:05]} Rb8 {[%emt 0:00:18]} 20. exd6 {[%emt 0:12:44]} Na7 {[%emt 0:09:03]} 21. Nxc5 {[%emt 0:11:45]} Qxc5+ {[%emt 0:06:51]} 22. Be3 {[%emt 0:00:10]} Qxd6 {[%emt 0:01:08]} 23. Bxa7 {[%emt 0:00:22]} Rxb2 {[%emt 0:00:12]} 24. d4 {[%emt 0:04:28]} Qc7 {[%emt 0:06:58]} 25. Bc5 {[%emt 0:01:52]} Bb7 {[%emt 0:02:04]} 26. Re2 {[%emt 0:02:14]} Rxe2 {[%emt 0:02:47]} 27. Qxe2 {[%emt 0:00:08]} Bxg2 {[%emt 0:05:52]} 28. Qxg2 {[%emt 0:02:14]} Rb8 {[%emt 0:00:24]} 29. Qa2 {[%emt 0:06:13]} Qb7 {[%emt 0:01:01]} 30. Rxa6 {[%emt 0:05:04]} Qf3 {[%emt 0:00:25]} 31. Qc2 {[%emt 0:03:36]} Qe3+ {[%emt 0:00:36]} 32. Kg2 {[%emt 0:00:45]} Bf8 {[%emt 0:00:25]} 33. Bxf8 {[%emt 0:02:42]} Kxf8 {[%emt 0:00:02]} 34. Rc6 {[%emt 0:01:16]} Qe1 {[%emt 0:00:48]} 35. Kf3 {[%emt 0:02:50]} Rb1 {[%emt 0:00:33]} 36. Kg4 {[%emt 0:02:25]} Kg7 {[%emt 0:00:42]} 37. Rc7 {[%emt 0:00:57]} Rc1 {[%emt 0:00:15]} 38. Qb2 {[%emt 0:01:44]} Qd1+ {[%emt 0:00:42]} 39. Kh3 {[%emt 0:00:24]} Rc2 {[%emt 0:00:17]} 40. Rxf7+ {[%emt 0:01:28]} Kxf7 {[%emt 0:00:10]} 41. Qb7+ {[%emt 0:40:18]} Kf6 {[%emt 0:41:03]} 0-1

[Event "Fagernes Chess Open 2024"]
[Site "Fagernes"]
[Date "2024.03.26"]
[Round "3.7"]
[White "Sushrutha, Reddy"]
[Black "Yilmaz, Kazim"]
[Result "1-0"]
[ECO "C36"]
[WhiteElo "1707"]
[BlackElo "1805"]
[Annotator "NA RC"]
[PlyCount "131"]
[EventDate "2024.03.25"]
[EventType "swiss"]
[EventCountry "NOR"]
[SourceTitle "playchess.com"]
[Source "ChessBase"]
[SourceQuality "1"]
[TimeControl "40/6000+30:2400+30"]

1. e4 {[%emt 0:03:42]} e5 {[%emt 0:00:05]} 2. f4 {[%emt 0:00:04]} exf4 {[%emt 0:00:09]} 3. Nf3 {[%emt 0:00:06]} d5 {[%emt 0:00:14]} 4. exd5 {[%emt 0:00:08]} Qxd5 {[%emt 0:00:06]} 5. Nc3 {[%emt 0:00:12]} Qa5 {[%emt 0:01:24]} 6. Bc4 {[%emt 0:01:07]} Nf6 {[%emt 0:01:46]} 7. Qe2+ {[%emt 0:00:53]} Be7 {[%emt 0:01:04]} 8. d4 {[%emt 0:03:05]} Bg4 {[%emt 0:08:45]} 9. Bxf7+ {[%emt 0:00:13]} Kxf7 {[%emt 0:00:09]} 10. Ne5+ {[%emt 0:00:02]} Ke8 {[%emt 0:01:06]} 11. Nxg4 {[%emt 0:00:06]} Nxg4 {[%emt 0:00:15]} 12. Qxg4 {[%emt 0:00:10]} Qg5 {[%emt 0:02:27]} 13. Qxg5 {[%emt 0:02:24]} Bxg5 {[%emt 0:00:06]} 14. Nd5 {[%emt 0:00:45]} Kd7 {[%emt 0:02:10]} 15. O-O {[%emt 0:00:52]} Rf8 {[%emt 0:02:40]} 16. Bxf4 {[%emt 0:01:43]} Bxf4 {[%emt 0:00:08]} 17. Nxf4 {[%emt 0:00:51]} Rf5 {[%emt 0:11:34]} 18. Rae1 {[%emt 0:01:19]} Nc6 {[%emt 0:02:32]} 19. c3 {[%emt 0:00:44]} g6 {[%emt 0:03:34]} 20. Nd3 {[%emt 0:00:17]} b6 {[%emt 0:06:50]} 21. Rxf5 {[%emt 0:00:08]} gxf5 {[%emt 0:00:03]} 22. Ne5+ {[%emt 0:00:32]} Nxe5 {[%emt 0:00:12]} 23. Rxe5 {[%emt 0:00:02]} Rf8 {[%emt 0:00:09]} 24. Kf2 {[%emt 0:00:10]} Kd6 {[%emt 0:00:21]} 25. Re2 {[%emt 0:02:39]} a5 {[%emt 0:01:03]} 26. Kf3 {[%emt 0:00:04]} b5 {[%emt 0:00:58]} 27. Kf4 {[%emt 0:00:08]} b4 {[%emt 0:01:48]} 28. c4 {[%emt 0:00:14]} c5 {[%emt 0:01:53]} 29. d5 {[%emt 0:00:19]} h5 {[%emt 0:00:24]} 30. Re6+ {[%emt 0:00:05]} Kd7 {[%emt 0:00:38]} 31. g3 {[%emt 0:00:21]} a4 {[%emt 0:03:55]} 32. h4 {[%emt 0:01:42]} Rg8 {[%emt 0:02:28]} 33. b3 {[%emt 0:00:38]} axb3 {[%emt 0:00:59]} 34. axb3 {[%emt 0:00:02]} Rg4+ {[%emt 0:01:28]} 35. Kf3 {[%emt 0:00:15]} f4 {[%emt 0:00:29]} 36. gxf4 {[%emt 0:00:37]} Rxh4 {[%emt 0:00:07]} 37. Re3 {[%emt 0:01:05]} Rh1 {[%emt 0:02:48]} 38. f5 {[%emt 0:00:24]} h4 {[%emt 0:04:05]} 39. Kg4 {[%emt 0:00:26]} Rf1 {[%emt 0:08:52]} 40. Rf3 {[%emt 0:02:29]} Rh1 {[%emt 0:03:35]} 41. Rh3 {[%emt 0:40:36]} Rg1+ {[%emt 0:41:51]} 42. Kxh4 {[%emt 0:00:47]} Ke7 {[%emt 0:00:14]} 43. Rg3 {[%emt 0:00:10]} Rc1 {[%emt 0:01:22]} 44. Kg5 {[%emt 0:01:30]} Rc3 {[%emt 0:00:20]} 45. Kf4 {[%emt 0:00:14]} Rc1 {[%emt 0:01:02]} 46. Re3+ {[%emt 0:00:28]} Kf7 {[%emt 0:01:36]} 47. Ke5 {[%emt 0:01:34]} Rc3 {[%emt 0:00:42]} 48. Ke4 {[%emt 0:00:18]} Rc1 {[%emt 0:00:14]} 49. d6 {[%emt 0:00:28]} Rf1 {[%emt 0:05:28]} 50. Ke5 {[%emt 0:01:23]} Rd1 {[%emt 0:01:16]} 51. Rh3 {[%emt 0:00:14]} Ke8 {[%emt 0:00:53]} 52. Rh8+ {[%emt 0:00:12]} Kd7 {[%emt 0:00:14]} 53. Rh7+ {[%emt 0:00:02]} Kc6 {[%emt 0:02:15]} 54. Rc7+ {[%emt 0:00:11]} Kb6 {[%emt 0:00:10]} 55. f6 {[%emt 0:01:40]} Re1+ {[%emt 0:00:54]} 56. Kd5 {[%emt 0:00:17]} Rd1+ {[%emt 0:01:01]} 57. Ke6 {[%emt 0:00:03]} Re1+ {[%emt 0:00:18]} 58. Kd7 {[%emt 0:00:14]} Rf1 {[%emt 0:01:03]} 59. Rc6+ {[%emt 0:00:18]} Kb7 {[%emt 0:00:21]} 60. Rxc5 {[%emt 0:00:03]} Rxf6 {[%emt 0:00:15]} 61. Rb5+ {[%emt 0:00:10]} Ka6 {[%emt 0:02:48]} 62. Rxb4 {[%emt 0:00:04]} Rf7+ {[%emt 0:00:23]} 63. Kc6 {[%emt 0:00:05]} Ka7 {[%emt 0:00:20]} 64. d7 {[%emt 0:00:21]} Rf8 {[%emt 0:00:44]} 65. Kc7 {[%emt 0:00:04]} Ka6 {[%emt 0:00:17]} 66. Ra4# {[%emt 0:00:02]} 1-0

[Event "Fagernes Chess Open 2024"]
[Site "Fagernes"]
[Date "2024.03.26"]
[Round "3.8"]
[White "Johansson, Henrik"]
[Black "Brattgjerd, August Minh"]
[Result "1/2-1/2"]
[ECO "D05"]
[WhiteElo "1736"]
[BlackElo "1689"]
[Annotator "NA RC"]
[PlyCount "56"]
[EventDate "2024.03.25"]
[EventType "swiss"]
[EventCountry "NOR"]
[SourceTitle "playchess.com"]
[Source "ChessBase"]
[SourceQuality "1"]
[TimeControl "40/6000+30:2400+30"]

1. d4 {[%emt 0:00:12]} d5 {[%emt 0:00:14]} 2. Nf3 {[%emt 0:00:28]} Nf6 {[%emt 0:00:22]} 3. e3 {[%emt 0:02:11]} e6 {[%emt 0:00:18]} 4. Bd3 {[%emt 0:00:18]} Bd6 {[%emt 0:00:15]} 5. b3 {[%emt 0:00:35]} Nbd7 {[%emt 0:00:38]} 6. Bb2 {[%emt 0:01:02]} b6 {[%emt 0:01:15]} 7. Nbd2 {[%emt 0:01:51]} c5 {[%emt 0:00:21]} 8. O-O {[%emt 0:01:21]} Bb7 {[%emt 0:00:20]} 9. Ne5 {[%emt 0:04:09]} O-O {[%emt 0:02:23]} 10. f4 {[%emt 0:01:29]} Ne4 {[%emt 0:02:59]} 11. Nxe4 {[%emt 0:12:08]} dxe4 {[%emt 0:00:18]} 12. Bc4 {[%emt 0:02:46]} cxd4 {[%emt 0:01:47]} 13. Nxd7 {[%emt 0:04:17]} Qxd7 {[%emt 0:03:14]} 14. Qxd4 {[%emt 0:03:24]} f6 {[%emt 0:01:57]} 15. Rad1 {[%emt 0:02:41]} Rfd8 {[%emt 0:01:35]} 16. Ba3 {[%emt 0:04:13]} Bd5 {[%emt 0:02:23]} 17. Bxd5 {[%emt 0:06:34]} Bc5 {[%emt 0:06:15]} 18. Bxc5 {[%emt 0:03:27]} bxc5 {[%emt 0:01:28]} 19. Bxe6+ {[%emt 0:00:55]} Qxe6 {[%emt 0:00:23]} 20. Qxc5 {[%emt 0:02:55]} Rdc8 {[%emt 0:00:33]} 21. Qa5 {[%emt 0:03:07]} Rxc2 {[%emt 0:01:57]} 22. Rd4 {[%emt 0:02:29]} Rac8 {[%emt 0:02:32]} 23. Rfd1 {[%emt 0:01:21]} Rxg2+ {[%emt 0:05:56]} 24. Kxg2 {[%emt 0:03:44]} Qg4+ {[%emt 0:00:17]} 25. Kf1 {[%emt 0:01:28]} Qf3+ {[%emt 0:00:09]} 26. Ke1 {[%emt 0:00:35]} Qxe3+ {[%emt 0:00:38]} 27. Kf1 {[%emt 0:00:14]} Qf3+ {[%emt 0:00:08]} 28. Ke1 {[%emt 0:00:11]} Qe3+ {[%emt 0:00:06]} 1/2-1/2